fUSD/lending_fUSD_20260419
["ID","MTS","AMOUNT","RATE_DAILY","PERIOD"]
[420836270,1776609040794,-1328.27659266,0.00013051,2]
[420836271,1776609040804,-151.0,0.00013051,2]
[420836272,1776609040813,-174.61919141,0.00013051,2]
[420836273,1776609040823,-1000.0,0.00013051,2]
[420836274,1776609040832,-181.97608745,0.00013051,2]
[420836275,1776609040841,-1000.0,0.00013051,2]
[420836276,1776609040851,-1000.0,0.00013051,2]
[420836277,1776609040861,-1000.0,0.00013051,2]
[420836278,1776609040870,-644.79446246,0.00013051,2]
[420836279,1776609040879,-1000.0,0.00013051,2]
[420836280,1776609040888,-1000.0,0.00013051,2]
[420836281,1776609040897,-1000.0,0.00013051,2]
[420836282,1776609040908,-1000.0,0.00013051,2]
[420836283,1776609040917,-152.21609209,0.00013051,2]
[420836284,1776609040927,-235.75327198,0.00013051,2]
[420836285,1776609040936,-311.35716764,0.00013051,2]
[420836286,1776609040946,-194.72792766,0.00013051,2]
[420836287,1776609040955,-152.16566005,0.00013051,2]
[420836288,1776609040965,-500.0,0.00013106,2]
[420836289,1776609040974,-151.0,0.00013106,2]
[420836290,1776609040984,-500.0,0.00013161,2]
[420836291,1776609040993,-151.0,0.00013161,2]
[420836292,1776609041003,-500.0,0.00013182,2]
[420836293,1776609041012,-500.0,0.00013216,2]
[420836294,1776609041022,-151.0,0.00013216,2]
[420836295,1776609041031,-323.18330102,0.00013216,2]
[420836296,1776609041040,-500.0,0.00013271,2]
[420836297,1776609041050,-151.0,0.00013271,2]
[420836298,1776609041060,-500.0,0.00013326,2]
[420836299,1776609041069,-151.0,0.00013326,2]
[420836300,1776609041079,-160.0,0.00013359,2]
[420836301,1776609041088,-500.0,0.00013381,2]
[420836302,1776609041098,-151.0,0.00013381,2]
[420836303,1776609041107,-500.0,0.00013436,2]
[420836304,1776609041116,-632.90353496,0.00013456,2]
[420836305,1776609041125,-500.0,0.00013491,2]
[420836306,1776609041135,-500.0,0.00013546,2]
[420836307,1776609041145,-5700.96731297,0.00013558,2]
[420836308,1776609041155,-2000.0,0.0001357,2]
[420836309,1776609041164,-250.0,0.00013589,2]
[420836310,1776609041174,-201.93286098,0.00013599,2]
[420836311,1776609041184,-201.93286098,0.00013599,2]
[420836312,1776609041193,-200.0,0.00013599,2]
[420836313,1776609041203,-1377.42282659,0.00013599,2]
[420836314,1776609041212,-181.08010149,0.00013599,2]
[420836315,1776609041222,-668.65185757,0.00013599,2]
[420836316,1776609041232,-201.93286098,0.00013599,2]
[420836317,1776609041242,-500.0,0.00013601,2]
[420836318,1776609041252,-500.0,0.00013656,2]
[420836319,1776609041262,-166.66,0.00013699,2]
[420836320,1776609041271,-2137.44,0.00013699,2]
[420836321,1776609041281,-500.0,0.00013711,2]
[420836322,1776609041290,-736.0,0.00013754,2]
[420836323,1776609041300,-3292.0,0.00013826,2]
[420836324,1776609041309,-166.66,0.00013836,2]
[420836325,1776609041318,-30000.0,0.00013894,2]
[420836326,1776609041327,-166.66,0.00013973,2]
[420836327,1776609041337,-500.0,0.00014013,2]
[420836328,1776609041346,-166.66,0.0001411,2]
[420836329,1776609041359,-200.0,0.00014147,2]
[420836330,1776609041369,-1428.38747117,0.00014147,2]
[420836331,1776609041379,-187.78006525,0.00014147,2]
[420836332,1776609041390,-166.66,0.00014247,2]
[420836333,1776609041400,-166.66,0.00014384,2]
[420836334,1776609041410,-1267.821,0.00014528,2]
[420836335,1776609041419,-2473.0,0.00014528,2]
[420836336,1776609041429,-416.0,0.00014528,2]
[420836337,1776609041438,-562.2908788,0.0001456,2]
[420836338,1776609041447,-200.0,0.00014695,2]
[420836339,1776609041457,-1481.23780761,0.00014695,2]
[420836340,1776609041467,-194.72792766,0.00014695,2]
[420836341,1776609041476,-2000.0,0.00014927,2]
[420836342,1776609041485,-973.0,0.00015094,2]
[420836343,1776609041494,-160.0,0.00015188,7]
[420836344,1776609041504,-186.376733,0.00015188,7]
[420836345,1776609041513,-212.753466,0.00015188,7]
[420836346,1776609041523,-160.0,0.00015188,7]
[420836347,1776609041532,-306.477078,0.00015188,7]
[420836348,1776609041541,-452.954156,0.00015188,7]
[420836349,1776609041551,-722.0,0.00015209,2]
[420836350,1776609041560,-200.0,0.00015243,2]
[420836351,1776609041570,-1536.04360649,0.00015243,2]
[420836352,1776609041579,-201.93286099,0.00015243,2]
[420836353,1776609041588,-160.0,0.00015264,7]
[420836354,1776609041598,-1375.480119,0.00015264,7]
[420836355,1776609041607,-2590.960239,0.00015264,7]
[420836356,1776609041617,-3728.30854138,0.00015467,2]
[420836357,1776609041627,-1115.99999999,0.00015471,2]
[420836358,1776609041636,-160.0,0.00015474,7]
[420836359,1776609041645,-222.102332,0.00015474,7]
[420836360,1776609041655,-284.204665,0.00015474,7]
[420836361,1776609041665,-5700.96731297,0.00015576,2]
[420836362,1776609041674,-152.0,0.00015662,7]
[420836363,1776609041683,-599.60298507,0.0001579,2]
[420836364,1776609041692,-695.39793187,0.0001579,2]
[420836365,1776609041702,-200.0,0.00015791,2]
[420836366,1776609041712,-1592.87721993,0.00015791,2]
[420836367,1776609041722,-209.40437684,0.00015791,2]
[420836368,1776609041731,-381.225135,0.00015947,7]
[420836369,1776609041741,-417.923288,0.00015947,7]
[420836370,1776609041752,-1875.654708,0.00016027,7]
[420836371,1776609041762,-200.0,0.0001616,2]
[420836372,1776609041771,-302.866817,0.00016248,7]
[420836373,1776609041780,-2000.0,0.00016284,2]
[420836374,1776609041790,-1116.0,0.00016285,2]
[420836375,1776609041799,-200.0,0.00016339,2]
[420836376,1776609041808,-1651.81367706,0.00016339,2]
[420836377,1776609041818,-217.15233878,0.00016339,2]
[420836378,1776609041828,-200.0,0.00016887,2]
[420836379,1776609041837,-1712.93078312,0.00016887,2]
[420836380,1776609041846,-330.90908571,0.00017099,2]
[420836381,1776609041855,-246.97304237,0.00017435,2]
[420836382,1776609041864,-198.23707,0.00017466,7]
[420836383,1776609041874,-217.320109,0.00017466,7]
[420836384,1776609041883,-416.0,0.00017528,2]
[420836385,1776609041891,-650.226965,0.00017554,7]
[420836386,1776609041901,-5700.96731297,0.00017593,2]
[420836387,1776609041910,-185.16,0.00018014,2]
[420836388,1776609041920,-155.77,0.000185,7]
[420836389,1776609042361,-634.53872948,0.00018529,2]
[420836390,1776609042371,-621.84813642,0.00018529,2]
[420836391,1776609042380,-250.0,0.00018935,2]
[420836392,1776609042390,-1971.0,0.00018939,2]
[420836393,1776609042400,-1971.0,0.00018978,2]
[420836394,1776609042409,-1971.0,0.00019158,2]
[420836395,1776609042419,-1971.0,0.00019159,2]
[420836396,1776609042429,-1971.0,0.00019164,2]
[420836397,1776609042438,-1971.0,0.00019344,2]
[420836398,1776609042448,-1971.0,0.00019424,2]
[420836399,1776609042457,-1971.0,0.00019433,2]
[420836400,1776609042467,-1971.0,0.00019455,2]
[420836401,1776609042478,-1971.0,0.00019483,2]
[420836402,1776609042487,-3728.30854138,0.00019493,2]
[420836403,1776609042497,-1971.0,0.00019507,2]
[420836404,1776609042507,-5700.96731297,0.00019611,2]
[420836405,1776609042517,-1971.0,0.00019647,2]
[420836406,1776609042527,-450.054172,0.00019753,7]
[420836407,1776609042537,-1005.709107,0.00019753,7]
[420836408,1776609042547,-1971.0,0.00019794,2]
[420836409,1776609042556,-350.122212,0.00019843,7]
[420836410,1776609042566,-1971.0,0.00019857,2]
[420836411,1776609042575,-1971.0,0.00019928,2]
[420836412,1776609042584,-5000.0,0.00019942,2]
[420836413,1776609042594,-2381.0,0.0002,2]
[420836414,1776609042604,-212.0,0.0002,2]
[420836415,1776609042614,-158.0,0.0002,2]
[420836416,1776609042624,-1657.0,0.0002,2]
[420836417,1776609042635,-252.0,0.0002,2]
[420836418,1776609042647,-223.0,0.0002,2]
[420836419,1776609042658,-6003.0,0.0002,2]
[420836420,1776609042667,-277.0,0.0002,2]
[420836422,1776609042677,-477.01,0.0002,30]
[420836423,1776609042686,-1971.0,0.00020024,2]
[420836424,1776609042696,-1971.0,0.00020042,2]
[420836426,1776609042705,-1000.0,0.0002009,2]
[420836427,1776609042715,-1971.0,0.00020128,2]
[420836428,1776609042725,-1971.0,0.00020134,2]
[420836429,1776609042735,-1971.0,0.00020139,2]
[420836430,1776609042744,-1971.0,0.0002019,2]
[420836431,1776609042754,-1971.0,0.00020191,2]
[420836432,1776609042763,-1971.0,0.00020378,2]
[420836433,1776609042772,-1971.0,0.00020473,2]
[420836435,1776609042782,-1971.0,0.00020491,2]
[420836437,1776609042792,-569.0,0.000205,5]
[420836438,1776609042801,-2381.0,0.00021,2]
[420836439,1776609042810,-212.0,0.00021,2]
[420836440,1776609042820,-158.0,0.00021,2]
[420836441,1776609042829,-1657.0,0.00021,2]
[420836442,1776609042839,-252.0,0.00021,2]
[420836443,1776609042848,-223.0,0.00021,2]
[420836444,1776609042858,-277.0,0.00021,2]
[420836446,1776609042874,-260.0,0.00021309,3]
[420836448,1776609042895,-5700.96731297,0.00021629,2]
[420836450,1776609042915,-151.07969989,0.00021644,2]
[420836451,1776609042924,-208.97635853,0.00021644,2]
[420836452,1776609042934,-500.0,0.00021644,2]
[420836453,1776609042944,-500.0,0.00021644,2]
[420836454,1776609042954,-227.4942493,0.00021644,2]
[420836455,1776609042964,-500.0,0.00021644,2]
[420836457,1776609042974,-500.0,0.00021644,2]
[420836459,1776609042983,-500.0,0.00021644,2]
[420836460,1776609042992,-500.0,0.00021644,2]
[420836461,1776609043001,-500.0,0.00021644,2]
[420836462,1776609043011,-500.0,0.00021644,2]
[420836463,1776609043020,-500.0,0.00021644,2]
[420836464,1776609043030,-150.0,0.00021644,2]
[420836465,1776609043039,-500.0,0.00021644,2]
[420836466,1776609043048,-150.0,0.00021644,2]
[420836467,1776609043059,-500.0,0.00021644,2]
[420836468,1776609043069,-222.40782259,0.00021644,2]
[420836469,1776609043078,-500.0,0.00021644,2]
[420836471,1776609043087,-150.0,0.00021644,2]
[420836472,1776609043097,-500.0,0.00021644,2]
[420836473,1776609043106,-290.87238876,0.00021644,2]
[420836474,1776609043115,-150.0,0.00021644,2]
[420836475,1776609043126,-500.0,0.00021644,2]
[420836476,1776609043135,-500.0,0.00021644,2]
[420836477,1776609043144,-500.0,0.00021644,2]
[420836478,1776609043154,-500.0,0.00021644,2]
[420836479,1776609043163,-629.85217778,0.00021644,2]
[420836480,1776609043173,-797.55,0.000217,2]
[420836481,1776609043182,-185.16,0.00021781,2]
[420836482,1776609043192,-5000.0,0.00021918,2]
[420836483,1776609043201,-1200.0,0.00021918,2]
[420836485,1776609043211,-1200.0,0.00021918,2]
[420836486,1776609043220,-1200.0,0.00021918,2]
[420836487,1776609043230,-1200.0,0.00021918,2]
[420836488,1776609043239,-1200.0,0.00021918,2]
[420836489,1776609043248,-1200.0,0.00021918,2]
[420836490,1776609043257,-1200.0,0.00021918,2]
[420836491,1776609043266,-1200.0,0.00021918,2]
[420836492,1776609043276,-1200.0,0.00021918,2]
[420836493,1776609043285,-1200.0,0.00021918,2]
[420836494,1776609043295,-1200.0,0.00021918,2]
[420836495,1776609043305,-1200.0,0.00021918,2]
[420836496,1776609043314,-802.04986075,0.00021918,2]
[420836497,1776609043323,-1200.0,0.00021918,2]
[420836498,1776609043333,-1200.0,0.00021918,2]
[420836499,1776609043342,-1200.0,0.00021918,2]
[420836500,1776609043351,-1200.0,0.00021918,2]
[420836501,1776609043360,-1200.0,0.00021918,2]
[420836502,1776609043370,-1200.0,0.00021918,2]
[420836503,1776609043379,-1200.0,0.00021918,2]
[420836504,1776609043388,-1200.0,0.00021918,2]
[420836505,1776609043398,-2381.0,0.00022,2]
[420836506,1776609043407,-212.0,0.00022,2]
[420836507,1776609043416,-158.0,0.00022,2]
[420836509,1776609043426,-1657.0,0.00022,2]
[420836510,1776609043435,-252.0,0.00022,2]
[420836511,1776609043444,-223.0,0.00022,2]
[420836512,1776609043454,-507.16,0.00022,30]
[420836513,1776609043464,-171.0,0.00022,2]
[420836514,1776609043474,-277.0,0.00022,2]
[420836515,1776609043483,-477.01,0.00022194,30]
[420836516,1776609043492,-242.336862,0.00022329,14]
[420836517,1776609043502,-361.023782,0.00022329,14]
[420836518,1776609043513,-2381.0,0.00023,2]
[420836519,1776609043523,-212.0,0.00023,2]
[420836520,1776609043533,-158.0,0.00023,2]
[420836522,1776609043543,-1657.0,0.00023,2]
[420836523,1776609043553,-252.0,0.00023,2]
[420836524,1776609043563,-223.0,0.00023,2]
[420836525,1776609043572,-277.0,0.00023,2]
[420836526,1776609043584,-171.0,0.00023014,7]
[420836527,1776609043593,-199.43,0.00023063,2]
[420836528,1776609043603,-198.09,0.00023063,2]
[420836529,1776609043613,-175.57,0.00023063,2]
[420836530,1776609043623,-213.15,0.00023063,2]
[420836531,1776609043632,-500.0,0.00023356,7]
[420836532,1776609043641,-1200.0,0.00023356,7]
[420836533,1776609043651,-797.55,0.000234,7]
[420836534,1776609043662,-199.42,0.00023425,2]
[420836535,1776609043672,-522.81,0.00023515,2]
[420836536,1776609043682,-3728.30854138,0.0002352,2]
[420836537,1776609043691,-960.0,0.000236,5]
[420836538,1776609043700,-5700.96731297,0.00023647,2]
[420836539,1776609043710,-234.09,0.00023969,2]
[420836540,1776609043719,-261.62569791,0.00024,30]
[420836541,1776609043729,-2381.0,0.00024,2]
[420836542,1776609043738,-212.0,0.00024,2]
[420836543,1776609043748,-174.0,0.00024,2]
[420836544,1776609043758,-1657.0,0.00024,2]
[420836545,1776609043767,-252.0,0.00024,2]
[420836546,1776609043776,-223.0,0.00024,2]
[420836547,1776609043786,-277.0,0.00024,2]
[420836548,1776609043797,-259.11363883,0.00024038,2]
[420836549,1776609043807,-150.0,0.00024066,30]
[420836550,1776609043816,-351.56009233,0.00024099,2]
[420836551,1776609043825,-160.0,0.000241,30]
[420836552,1776609043836,-249.28,0.0002415,2]
[420836553,1776609043845,-477.01,0.00024387,60]
[420836554,1776609043854,-1200.0,0.00024452,7]
[420836555,1776609043866,-993.25302301,0.000245,2]
[420836556,1776609043875,-250.0,0.00024526,5]
[420836557,1776609043884,-797.55,0.000246,7]
[420836558,1776609043894,-150.0,0.00024633,2]
[420836559,1776609043904,-226.29,0.00024684,2]
[420836560,1776609043914,-184.21,0.00024684,2]
[420836561,1776609043923,-216.27,0.00024684,2]
[420836562,1776609043933,-500.0,0.00024701,2]
[420836563,1776609043942,-1000.0,0.00024703,2]
[420836564,1776609043952,-277.17,0.00024705,2]
[420836565,1776609043961,-500.0,0.00024726,2]
[420836566,1776609043970,-1000.0,0.00024733,2]
[420836567,1776609043980,-1000.0,0.00024736,2]
[420836568,1776609043989,-500.0,0.0002475,2]
[420836569,1776609043998,-200.0,0.0002475,2]
[420836570,1776609044008,-257.39191255,0.00024752,2]
[420836571,1776609044017,-500.0,0.00024775,2]
[420836572,1776609044027,-1333.33333,0.0002478,2]
[420836573,1776609044037,-1000.0,0.00024785,2]
[420836574,1776609044046,-500.0,0.00024799,2]
[420836575,1776609044055,-377.0,0.00024806,2]
[420836576,1776609044065,-1333.33334,0.0002482,2]
[420836577,1776609044074,-1000.0,0.00024847,2]
[420836578,1776609044084,-1000.0,0.00024852,2]
[420836579,1776609044093,-1000.0,0.00024863,2]
[420836580,1776609044102,-205.07975284,0.00024874,2]
[420836581,1776609044112,-203.18725147,0.0002488,2]
[420836582,1776609044121,-1333.33333,0.0002488,2]
[420836583,1776609044131,-1000.0,0.00024886,2]
[420836584,1776609044140,-302.10204082,0.0002489,2]
[420836585,1776609044149,-1000.0,0.00024896,2]
[420836586,1776609044160,-1156.85,0.00024897,2]
[420836587,1776609044169,-65179.4307201,0.00024898,2]
[420836588,1776609044178,-637.797887,0.00024898,2]
[420836589,1776609044188,-9978.0416226,0.00024898,2]
[420836590,1776609044198,-2000.0,0.000249,2]
[420836591,1776609044208,-218840.84875,0.000249,2]
[420836592,1776609044218,-3642.46475406,0.0002492,10]
[420836593,1776609044228,-1639.78136048,0.0002495,2]
[420836594,1776609044237,-152.0,0.0002495,2]
[420836595,1776609044247,-154.35640537,0.0002495,2]
[420836596,1776609044257,-152.55031594,0.0002495,2]
[420836597,1776609044266,-1000.0,0.0002496,2]
[420836598,1776609044276,-1156.85,0.00024999,2]
[420836599,1776609044285,-244760.74665578,0.00025,2]
[420836600,1776609044294,-133936.27068077,0.00025,60]
[420836601,1776609044303,-200.10668464,0.00025,2]
[420836602,1776609044312,-480.0,0.00025,2]
[420836603,1776609044322,-917.0,0.00025,2]
[420836604,1776609044331,-2381.0,0.00025,2]
[420836605,1776609044340,-227.0,0.00025,2]
[420836606,1776609044350,-151.0,0.00025,2]
[420836607,1776609044359,-275.47007217,0.00025,2]
[420836608,1776609044369,-1670.0,0.00025,2]
[420836609,1776609044379,-353.87,0.00025,7]
[420836610,1776609044388,-252.0,0.00025,2]
[420836611,1776609044397,-229.0,0.00025,2]
[420836612,1776609044407,-523.25139582,0.00025,30]
[420836613,1776609044417,-1333.33333,0.00025,2]
[420836614,1776609044426,-1333.33333,0.00025,2]
[420836615,1776609044435,-1333.33334,0.00025,2]
[420836616,1776609044444,-650.0,0.00025,60]
[420836617,1776609044453,-650.0,0.00025,60]
[420836618,1776609044463,-577.0,0.00025,60]
[420836619,1776609044472,-400.0,0.00025,60]
[420836620,1776609044483,-400.0,0.00025,60]
[420836621,1776609044493,-320.0,0.00025,60]
[420836622,1776609044503,-290.0,0.00025,2]
[420836623,1776609044513,-300.0,0.00025014,7]
[420836624,1776609044522,-300.0,0.00025014,7]
[420836625,1776609044532,-300.0,0.00025014,7]
[420836626,1776609044541,-300.0,0.00025014,7]
[420836627,1776609044551,-152.0,0.00025017,11]
[420836628,1776609044561,-257.39191255,0.0002505,7]
[420836629,1776609044570,-500.0,0.00025068,2]
[420836630,1776609044580,-2504.95169661,0.00025201,7]
[420836631,1776609044590,-914.15,0.000253,6]
[420836632,1776609044600,-257.39191255,0.00025348,7]
[420836633,1776609044610,-172.24,0.00025386,7]
[420836634,1776609044619,-150.0,0.00025451,30]
[420836635,1776609044629,-537.32436907,0.00025463,2]
[420836636,1776609044639,-500.0,0.00025548,7]
[420836637,1776609044651,-1200.0,0.00025548,7]
[420836638,1776609044661,-236.36028707,0.00025561,4]
[420836639,1776609044671,-800.0,0.00025563,2]
[420836640,1776609044681,-800.0,0.00025563,2]
[420836641,1776609044690,-800.0,0.00025563,2]
[420836642,1776609044699,-800.0,0.00025563,2]
[420836643,1776609044709,-800.0,0.00025563,2]
[420836644,1776609044719,-800.0,0.00025563,2]
[420836645,1776609044728,-800.0,0.00025563,2]
[420836646,1776609044737,-800.0,0.00025563,2]
[420836647,1776609044747,-800.0,0.00025563,2]
[420836648,1776609044756,-800.0,0.00025563,2]
[420836649,1776609044766,-800.0,0.00025563,2]
[420836650,1776609044776,-800.0,0.00025563,2]
[420836651,1776609044785,-800.0,0.00025563,2]
[420836652,1776609044795,-800.0,0.00025563,2]
[420836653,1776609044805,-800.0,0.00025563,2]
[420836654,1776609044815,-800.0,0.00025563,2]
[420836655,1776609044824,-800.0,0.00025563,2]
[420836656,1776609044833,-800.0,0.00025563,2]
[420836657,1776609044842,-800.0,0.00025563,2]
[420836658,1776609044851,-800.0,0.00025563,2]
[420836659,1776609044860,-800.0,0.00025563,2]
[420836660,1776609044869,-800.0,0.00025563,2]
[420836661,1776609044879,-800.0,0.00025563,2]
[420836662,1776609044888,-800.0,0.00025563,2]
[420836663,1776609044897,-800.0,0.00025563,2]
[420836664,1776609044908,-800.0,0.00025563,2]
[420836665,1776609044917,-800.0,0.00025563,2]
[420836666,1776609044927,-800.0,0.00025563,13]
[420836667,1776609044937,-800.0,0.00025563,13]
[420836668,1776609044946,-800.0,0.00025563,13]
[420836669,1776609044957,-800.0,0.00025563,13]
[420836670,1776609044966,-800.0,0.00025563,13]
[420836671,1776609044976,-800.0,0.00025563,13]
[420836672,1776609044988,-800.0,0.00025563,13]
[420836673,1776609044998,-800.0,0.00025563,13]
[420836674,1776609045008,-800.0,0.00025563,13]
[420836675,1776609045018,-800.0,0.00025563,13]
[420836676,1776609045027,-800.0,0.00025563,13]
[420836677,1776609045036,-800.0,0.00025563,13]
[420836678,1776609045046,-800.0,0.00025563,13]
[420836679,1776609045055,-800.0,0.00025563,13]
[420836680,1776609045064,-800.0,0.00025563,13]
[420836681,1776609045074,-800.0,0.00025563,13]
[420836682,1776609045083,-800.0,0.00025563,13]
[420836683,1776609045093,-800.0,0.00025563,13]
[420836684,1776609045102,-800.0,0.00025563,13]
[420836685,1776609045111,-800.0,0.00025563,13]
[420836686,1776609045120,-800.0,0.00025563,13]
[420836687,1776609045131,-800.0,0.00025563,13]
[420836688,1776609045140,-800.0,0.00025563,13]
[420836689,1776609045149,-800.0,0.00025563,13]
[420836690,1776609045160,-800.0,0.00025563,13]
[420836691,1776609045169,-800.0,0.00025563,13]
[420836692,1776609045180,-800.0,0.00025563,13]
[420836693,1776609045191,-800.0,0.00025563,13]
[420836694,1776609045202,-800.0,0.00025563,13]
[420836695,1776609045212,-800.0,0.00025563,13]
[420836696,1776609045223,-800.0,0.00025563,13]
[420836697,1776609045234,-800.0,0.00025563,13]
[420836698,1776609045245,-200.0,0.00025563,2]
[420836699,1776609045255,-200.0,0.00025563,2]
[420836700,1776609045264,-200.0,0.00025563,2]
[420836701,1776609045274,-200.0,0.00025563,2]
[420836702,1776609045285,-200.0,0.00025563,2]
[420836703,1776609045295,-200.0,0.00025563,2]
[420836704,1776609045307,-200.0,0.00025563,2]
[420836705,1776609045316,-200.0,0.00025563,2]
[420836706,1776609045326,-200.0,0.00025563,2]
[420836707,1776609045336,-200.0,0.00025563,2]
[420836708,1776609045346,-200.0,0.00025563,2]
[420836709,1776609045356,-200.0,0.00025563,2]
[420836710,1776609045366,-200.0,0.00025563,2]
[420836711,1776609045375,-200.0,0.00025563,2]
[420836712,1776609045386,-200.0,0.00025563,2]
[420836713,1776609045397,-200.0,0.00025563,2]
[420836714,1776609045413,-200.0,0.00025563,2]
[420836715,1776609045424,-200.0,0.00025563,2]
[420836716,1776609045434,-200.0,0.00025563,2]
[420836717,1776609045444,-200.0,0.00025563,2]
[420836718,1776609045454,-200.0,0.00025563,2]
[420836719,1776609045464,-200.0,0.00025563,2]
[420836720,1776609045473,-200.0,0.00025563,2]
[420836721,1776609045483,-200.0,0.00025563,2]
[420836722,1776609045494,-200.0,0.00025563,2]
[420836723,1776609045504,-200.0,0.00025563,2]
[420836724,1776609045514,-200.0,0.00025563,2]
[420836725,1776609045523,-200.0,0.00025563,2]
[420836726,1776609045533,-200.0,0.00025563,2]
[420836727,1776609045543,-200.0,0.00025563,2]
[420836728,1776609045553,-500.0,0.00025563,2]
[420836729,1776609045563,-500.0,0.00025563,2]
[420836730,1776609045573,-500.0,0.00025563,2]
[420836732,1776609045583,-500.0,0.00025563,2]
[420836733,1776609045593,-500.0,0.00025563,2]
[420836734,1776609045603,-800.0,0.00025563,13]
[420836735,1776609045614,-800.0,0.00025563,13]
[420836736,1776609045623,-800.0,0.00025563,13]
[420836737,1776609045633,-800.0,0.00025563,13]
[420836739,1776609045642,-800.0,0.00025563,13]
[420836741,1776609045652,-800.0,0.00025563,13]
[420836742,1776609045663,-800.0,0.00025563,13]
[420836743,1776609045672,-800.0,0.00025563,13]
[420836744,1776609045681,-800.0,0.00025563,13]
[420836745,1776609045691,-800.0,0.00025563,13]
[420836746,1776609045701,-800.0,0.00025563,13]
[420836747,1776609045710,-800.0,0.00025563,13]
[420836748,1776609045719,-800.0,0.00025563,13]
[420836749,1776609045729,-800.0,0.00025563,13]
[420836750,1776609045739,-800.0,0.00025563,13]
[420836751,1776609045748,-800.0,0.00025563,13]
[420836752,1776609045758,-438.0,0.00025563,13]
[420836753,1776609045767,-200.0,0.00025563,2]
[420836754,1776609045776,-200.0,0.00025563,2]
[420836755,1776609045786,-200.0,0.00025563,2]
[420836756,1776609045795,-200.0,0.00025563,2]
[420836759,1776609045805,-200.0,0.00025563,2]
[420836761,1776609045815,-200.0,0.00025563,2]
[420836762,1776609045824,-800.0,0.00025563,2]
[420836763,1776609045833,-800.0,0.00025563,2]
[420836764,1776609045842,-800.0,0.00025563,2]
[420836765,1776609045851,-169.0,0.00025563,2]
[420836766,1776609045860,-292.0,0.00025563,2]
[420836767,1776609045869,-500.0,0.00025563,2]
[420836768,1776609045878,-433.0,0.00025563,2]
[420836769,1776609045887,-151.0,0.00025563,2]
[420836770,1776609045897,-305.79,0.000256,6]
[420836771,1776609045909,-797.55,0.000256,7]
[420836772,1776609045919,-227.14,0.000256,6]
[420836773,1776609045928,-151.0,0.00025642,2]
[420836774,1776609045939,-257.39191255,0.00025646,14]
[420836775,1776609045949,-150.0,0.00025664,2]
[420836776,1776609045958,-150.0,0.00025664,2]
[420836777,1776609045967,-150.0,0.00025664,2]
[420836778,1776609045976,-289.0,0.00025664,2]
[420836779,1776609045986,-5700.96731297,0.00025664,2]
[420836780,1776609045995,-507.16,0.00025688,30]
[420836781,1776609046004,-185.16,0.00025689,2]
[420836782,1776609046013,-151.0,0.00025697,7]
[420836783,1776609046022,-498.70470251,0.000257,7]
[420836784,1776609046031,-196.24,0.00025748,2]
[420836785,1776609046040,-353.87,0.000258,7]
[420836786,1776609046050,-10000.0,0.00025825,2]
[420836787,1776609046059,-150.0,0.00025834,2]
[420836788,1776609046068,-152.0,0.0002589,12]